bitfinex/quotes_ETHUSD_20260113
["timestamp","ask_amount","ask_price","bid_price","bid_amount"]
[1768336420914,3.12714991,3197.8,3196.8,3.12812812]
[1768336421948,3.12714991,3197.8,3196.7,1.08470951]
[1768336421949,0.9084401,3197.7,3196.7,1.08470951]
[1768336422154,3.12714991,3197.8,3196.7,1.08470951]
[1768336422155,1.3119991,3197.6,3196.7,1.08470951]
[1768336423033,4.4393851,3197.6,3196.7,4.21290534]
[1768336423658,0.9084401,3197.5,3196.5,3.12835376]
[1768336423820,0.9084401,3197.5,3196.6,3.12832288]
[1768336424320,0.9084401,3197.5,3196.5,3.12842023]
[1768336424321,1.1534401,3197.5,3196.5,3.12842023]
[1768336424519,0.78117711,3197.4,3196.5,3.12842023]
[1768336425015,0.78117711,3197.4,3196.3,4.04373676]
[1768336425016,3.90879003,3197.4,3196.4,3.12851958]
[1768336425317,4.81723013,3197.4,3196.4,3.12851958]
[1768336425718,7.94484305,3197.4,3196.4,3.12851958]
[1768336425951,0.9084401,3197.3,3196.3,3.12856181]
[1768336426150,1.72742441,3197.3,3196.3,3.12856181]
[1768336426452,1.72742441,3197.3,3196.0,0.91517944]
[1768336426623,0.9084401,3197.2,3195.7,0.02328822]
[1768336426953,0.9084401,3197.2,3195.8,0.245]
[1768336427151,0.9084401,3197.0,3195.8,0.245]
[1768336427321,0.9084401,3196.8,3195.8,3.37410056]
[1768336428226,0.9084401,3196.8,3196.5,0.002]
[1768336428427,0.9084401,3196.8,3195.8,3.37404036]
[1768336428627,0.9084401,3196.8,3195.8,0.245]
[1768336428928,0.9084401,3196.8,3195.7,0.02328822]
[1768336429156,0.9084401,3196.0,3195.4,0.245]
[1768336429456,0.00080072,3196.1,3195.2,3.1316284]
[1768336429761,0.00080072,3196.1,3195.3,0.245]
[1768336430978,0.00080072,3196.1,3195.2,0.002]
[1768336430979,0.90924082,3196.1,3195.2,0.002]
[1768336431179,0.00080072,3196.1,3195.2,0.002]
[1768336431475,0.00080072,3196.1,3195.3,0.91517944]
[1768336431675,0.00080072,3196.1,3195.4,1.63283429]
[1768336432350,0.00080072,3196.1,3195.5,0.91517944]
[1768336432556,0.00080072,3196.1,3195.6,1.16017944]
[1768336432753,0.9084401,3197.2,3195.6,0.245]
[1768336432950,0.9084401,3197.0,3195.7,0.0008008]
[1768336433170,0.9084401,3196.8,3195.8,3.12910695]
[1768336433471,0.94754292,3196.7,3195.9,0.65050288]
[1768336433633,0.9084401,3196.7,3195.9,0.246]
[1768336433974,0.9084401,3196.7,3195.7,0.0008008]
[1768336433975,0.94754414,3196.6,3195.7,0.0008008]
[1768336434269,0.94754414,3196.6,3195.2,0.002]
[1768336434429,0.9084401,3196.0,3195.2,0.002]
[1768336434629,0.9084401,3196.0,3195.3,0.234138]
[1768336434854,0.9084401,3196.0,3195.3,0.57072771]
[1768336435055,0.9084401,3196.0,3195.2,0.002]
[1768336435260,0.9084401,3195.8,3195.3,0.246]
[1768336435430,0.9084401,3195.8,3195.4,0.246]
[1768336435925,3.12900904,3195.9,3195.4,0.246]
[1768336436357,3.12894489,3196.0,3195.4,0.246]
[1768336436574,3.84563785,3196.0,3195.4,0.246]
[1768336438763,0.0008008,3196.1,3195.4,3.37544338]
[1768336439847,0.0008008,3196.1,3195.4,0.246]
[1768336440163,0.0008008,3196.1,3195.7,0.002]
[1768336440340,0.0008008,3196.1,3195.4,0.002]
[1768336440341,0.9092409,3196.1,3195.4,0.002]
[1768336440666,0.9092409,3196.1,3195.5,0.246]
[1768336441084,0.9092409,3196.1,3195.4,0.002]
[1768336441085,0.9084401,3196.0,3195.4,0.002]
[1768336441375,0.9084401,3196.0,3195.1,0.246]
[1768336441570,7.16645818,3195.9,3195.1,0.246]
[1768336441736,0.9084401,3195.8,3194.6,3.13024902]
[1768336441938,0.9084401,3195.8,3194.4,4.04563793]
[1768336441939,0.9084401,3195.6,3194.7,0.246]
[1768336442179,0.9084401,3195.6,3194.5,3.13032348]
[1768336442339,0.9084401,3195.6,3194.6,0.246]
[1768336442538,0.9084401,3195.6,3194.6,3.32623236]
[1768336442739,0.9084401,3195.6,3194.7,0.246]
[1768336442948,0.16250859,3195.5,3194.7,0.246]
[1768336443235,3.12891113,3196.0,3195.1,3.12979233]
[1768336443438,0.246,3196.7,3195.1,3.12979233]
[1768336443439,0.0008008,3196.1,3195.2,0.91517944]
[1768336443636,0.0008008,3196.1,3195.4,0.91517944]
[1768336444270,0.9084401,3197.2,3195.9,0.91517944]
[1768336444436,0.9084401,3197.2,3196.1,0.91517944]
[1768336444437,3.1277679,3197.2,3196.1,0.91517944]
[1768336444637,0.62554805,3197.1,3196.1,0.91517944]
[1768336444972,0.9084401,3197.5,3196.1,0.91517944]
[1768336445131,0.9084401,3197.5,3195.7,0.00080088]
[1768336445132,0.9956328,3196.9,3195.7,0.00080088]
[1768336445336,1.0347344,3196.8,3195.8,0.246]
[1768336445538,3.12822598,3196.7,3195.7,0.00080088]
[1768336445844,0.03910404,3196.6,3195.8,0.246]
[1768336446049,0.41629628,3196.6,3195.8,3.3750879]
[1768336446245,0.41629628,3196.6,3195.8,0.246]
[1768336447276,0.41629628,3196.6,3195.8,3.37510437]
[1768336447506,3.1278346,3197.1,3195.9,0.90053271]
[1768336447808,3.1278346,3197.1,3196.0,3.12891113]
[1768336448314,6.25569775,3197.1,3196.1,0.246]
[1768336448808,0.9956328,3197.0,3196.2,0.246]
[1768336449007,0.72513306,3196.9,3196.2,0.246]
[1768336449170,0.72513306,3196.9,3196.3,0.246]
[1768336450006,3.1278733,3197.1,3196.3,0.246]
[1768336451009,3.12754112,3197.4,3196.3,4.27507674]
[1768336451379,7.25071504,3197.4,3196.3,4.27507674]
[1768336451802,0.9956328,3197.3,3195.9,0.90053271]
[1768336452114,0.9956328,3197.2,3196.0,0.246]
[1768336452308,0.9956328,3197.0,3195.8,3.12904904]
[1768336452516,0.73808079,3197.1,3195.7,0.00080088]
[1768336452517,0.9956328,3196.8,3196.1,0.246]
[1768336453009,0.9956328,3196.8,3196.2,0.246]
[1768336453309,0.9966328,3196.8,3196.2,0.246]
[1768336453814,3.12822598,3196.7,3196.2,0.246]
[1768336454012,0.001,3196.8,3196.2,0.246]
[1768336454389,0.9956328,3197.8,3196.2,0.58368054]
[1768336454590,0.9956328,3197.6,3196.1,0.002]
[1768336454787,0.9956328,3197.4,3196.2,0.246]
[1768336454996,0.9956328,3197.2,3196.2,0.246]
[1768336455382,0.9956328,3197.2,3196.3,0.246]
[1768336455710,0.9956328,3196.9,3196.3,0.246]
[1768336455915,0.9956328,3196.7,3196.1,0.002]
[1768336456113,0.9956328,3196.7,3196.2,0.246]
[1768336456687,0.9956328,3196.7,3196.1,0.002]
[1768336457013,0.9956328,3196.7,3196.2,0.246]
[1768336457712,0.9956328,3196.7,3196.2,3.37466971]
[1768336457903,0.94351271,3197.0,3196.2,4.0252252]
[1768336458090,0.94351271,3197.0,3196.2,0.246]
[1768336458697,0.94351271,3197.0,3196.2,3.37471454]
[1768336459211,0.94351271,3197.0,3196.2,0.246]
[1768336459392,0.94351271,3197.0,3196.2,3.37470102]
[1768336459604,0.94351271,3197.0,3196.2,0.246]
[1768336459804,0.94351271,3196.8,3196.2,0.246]
[1768336460597,0.94351271,3196.7,3196.2,0.246]
[1768336460797,0.94351271,3196.7,3196.1,0.002]
[1768336460798,0.94351271,3196.7,3196.3,0.246]
[1768336461512,0.94351271,3196.7,3196.4,0.246]
[1768336462227,0.94351271,3196.7,3196.5,0.246]
[1768336462631,3.84798462,3196.9,3196.1,3.13080181]
[1768336462632,0.94351271,3196.9,3196.4,3.12849826]
[1768336462810,0.94351271,3196.9,3196.5,0.246]
[1768336463203,5.34879841,3199.5,3196.5,0.246]
[1768336463204,0.94351271,3198.3,3196.5,0.58345842]
[1768336463517,0.94451271,3198.0,3196.6,0.246]
[1768336463944,0.94451271,3198.0,3196.7,6.25645196]
[1768336464643,0.94451271,3198.0,3196.7,9.38467794]
[1768336464819,0.94351271,3197.9,3196.8,0.246]
[1768336465015,0.94351271,3197.9,3196.9,0.6502452]
[1768336466060,0.94351271,3197.9,3197.0,3.12793243]
[1768336466543,0.94351271,3197.9,3197.0,6.25586486]
[1768336466756,0.94351271,3197.9,3197.0,3.12793243]
[1768336467057,0.94351271,3197.9,3197.1,0.246]
[1768336467407,0.001,3197.6,3197.1,0.246]
[1768336468253,0.001,3197.6,3197.2,3.12773676]
[1768336468567,0.001,3197.6,3197.3,0.246]
[1768336469076,0.001,3197.6,3197.4,0.246]
[1768336470857,0.001,3197.6,3197.5,0.246]
[1768336471765,0.94451271,3197.6,3197.5,0.246]
[1768336472921,0.001,3197.6,3197.5,0.246]
[1768336474278,0.001,3197.6,3197.5,3.37244331]
[1768336474441,0.001,3197.6,3197.5,0.245]
[1768336475868,0.94351271,3197.9,3197.5,0.245]
[1768336475869,0.94351271,3197.9,3197.5,3.37243776]
[1768336476060,0.89351271,3197.9,3197.5,3.37243776]
[1768336476567,0.001,3198.0,3197.5,3.37243776]
[1768336477093,0.98143577,3198.0,3196.7,0.04999984]
[1768336477233,0.98143577,3198.0,3196.5,0.33745842]
[1768336477234,0.98043577,3197.9,3197.1,3.12779165]
[1768336477662,0.98043577,3197.9,3196.8,0.245]
[1768336477663,0.98043577,3197.9,3197.2,3.12773586]
[1768336477941,0.98043577,3197.9,3197.0,3.1279284]
[1768336477942,0.98043577,3197.9,3197.1,3.12778655]
[1768336478255,0.98043577,3197.8,3197.2,3.37272644]
[1768336478842,0.98043577,3197.8,3197.2,0.245]
[1768336479047,0.001,3197.7,3197.2,0.245]
[1768336479349,0.001,3197.7,3197.3,3.12763894]
[1768336479652,0.98043577,3198.8,3197.4,0.92835874]
[1768336479854,0.98043577,3198.6,3197.5,0.245]
[1768336480377,0.98043577,3198.6,3197.6,0.245]
[1768336481351,3.12646553,3198.5,3197.6,3.37233097]
[1768336481588,0.98043577,3198.4,3197.6,3.37233097]
[1768336481757,0.98043577,3198.4,3197.6,4.08732023]
[1768336482087,0.98043577,3198.4,3197.6,4.08730465]
[1768336482385,0.98043577,3198.4,3197.6,3.37231539]
[1768336483395,0.98043577,3198.8,3197.6,3.37231539]
[1768336483592,0.03907837,3198.7,3197.6,7.42801963]
[1768336483897,1.01951414,3198.7,3197.2,0.92835874]
[1768336484066,0.98043577,3198.7,3197.3,0.245]
[1768336484638,0.98043577,3198.7,3197.5,3.12742117]
[1768336484757,0.98043577,3198.7,3197.6,0.33724212]
[1768336484956,0.98043577,3198.7,3197.6,3.46458339]
[1768336485409,5.67126986,3198.4,3197.6,3.46458339]
[1768336487375,0.98043577,3198.4,3197.6,3.46458339]
[1768336488591,0.98043577,3198.4,3197.7,0.245]
[1768336488793,0.98043577,3198.4,3197.8,0.37095834]
[1768336489874,4.106749,3198.7,3197.8,0.37095834]
[1768336490466,0.98043577,3198.9,3197.9,0.92835874]
[1768336490668,0.98043577,3198.9,3197.9,0.93035874]
[1768336490868,0.001,3198.1,3197.9,0.002]
[1768336491891,0.001,3198.1,3198.0,0.245]
[1768336492279,0.001,3198.1,3198.0,3.37195434]
[1768336492484,0.001,3198.1,3198.0,4.02206364]
[1768336493574,0.001,3198.1,3198.0,4.95042238]
[1768336494299,4.1074392,3199.0,3198.0,4.95042238]
[1768336494469,0.98043577,3198.9,3198.0,0.8951093]
[1768336494668,0.98043577,3198.9,3198.0,3.3719491]
[1768336496706,0.98043577,3198.7,3198.0,0.245]
[1768336496901,0.98043577,3198.7,3198.0,3.37191982]
[1768336497605,0.98043577,3198.7,3197.9,0.002]
[1768336497779,0.98043577,3198.7,3198.1,0.245]
[1768336498203,0.98043577,3198.7,3197.9,0.002]
[1768336498686,0.98043577,3198.5,3197.9,0.002]
[1768336499892,0.98043577,3198.5,3198.0,0.245]
[1768336500702,0.98043577,3198.3,3198.0,1e-08]
[1768336501025,0.98043577,3198.3,3197.9,0.247]
[1768336501693,0.98043577,3198.3,3197.9,0.002]
[1768336502024,0.98043577,3198.2,3197.9,0.247]
[1768336503027,0.72334923,3198.3,3197.9,0.247]
[1768336503318,4.10702071,3198.4,3197.9,0.247]
[1768336503522,0.98043577,3198.3,3197.9,0.247]
[1768336503737,0.98043577,3197.8,3197.5,0.002]
[1768336504102,0.98043577,3197.8,3197.5,0.247]
[1768336504421,0.98043577,3197.8,3197.3,0.245]
[1768336504793,0.98043577,3197.7,3197.3,0.245]
[1768336504992,0.98043577,3197.7,3196.5,4.18745842]
[1768336504993,0.97524884,3197.6,3196.3,0.247]
[1768336505693,0.97524884,3197.6,3196.3,3.3755754]
[1768336505894,0.97524884,3197.6,3196.4,3.12849843]
[1768336506287,0.97524884,3197.6,3196.3,1.19530267]
[1768336506597,0.97524884,3197.6,3196.6,0.94830267]
[1768336506799,6.254691,3197.6,3196.7,0.94830267]
[1768336507006,0.66950526,3197.5,3196.7,0.94830267]
[1768336508993,3.79700309,3197.5,3196.7,0.94830267]
[1768336509895,3.79700309,3197.5,3196.8,0.245]
[1768336511090,0.66950526,3197.5,3196.8,0.245]
[1768336511431,0.97524884,3197.6,3196.8,3.37312812]
[1768336511817,3.12725979,3197.7,3196.8,4.32143079]
[1768336512034,7.22976842,3197.7,3196.8,1.19330267]
[1768336512197,7.22976842,3197.7,3196.9,0.245]
[1768336512396,0.97524884,3197.6,3196.9,0.245]
[1768336512724,1.69822568,3197.6,3196.9,0.245]
[1768336513224,3.12744331,3197.5,3196.9,0.245]
[1768336513902,4.82561531,3197.6,3196.9,0.245]
[1768336514595,7.95300494,3197.6,3196.9,0.245]
[1768336514996,0.97524884,3197.5,3196.9,0.245]
[1768336515290,4.89803695,3197.5,3197.0,0.245]
[1768336516107,4.8980524,3197.5,3197.0,0.245]
[1768336516425,4.8980524,3197.5,3197.0,0.247]
[1768336518330,0.98478751,3197.4,3197.0,0.247]
[1768336518937,0.98478751,3197.2,3196.6,0.002]
[1768336519301,0.98478751,3197.0,3196.3,0.002]
[1768336519496,0.98478751,3196.8,3196.3,0.247]
[1768336519727,0.98478751,3196.8,3196.2,0.245]
[1768336520216,6.2556692,3197.1,3196.2,0.245]
[1768336520549,6.2556692,3197.1,3196.3,0.92103693]
[1768336520900,3.1278346,3197.1,3196.3,0.92103693]
[1768336521098,1.780088,3197.5,3196.5,0.92103693]
[1768336521422,6.25509805,3197.4,3196.5,0.92103693]
[1768336522497,7.23988556,3197.4,3196.3,0.92103693]
[1768336523010,7.23988556,3197.4,3196.3,4.04964979]
[1768336523403,7.23988556,3197.4,3196.4,0.92103693]
[1768336525457,7.23988556,3197.4,3196.1,0.002]
[1768336525458,0.98478751,3197.1,3196.1,0.002]
[1768336525608,6.25547352,3197.2,3196.1,0.92303693]
[1768336526505,6.25547352,3197.2,3196.2,0.92103693]
[1768336526840,7.24026103,3197.2,3196.2,0.92103693]
[1768336527139,0.98478751,3197.1,3196.2,0.74256301]
[1768336527438,7.24065237,3197.0,3196.2,0.74256301]
[1768336528043,0.98478751,3196.9,3196.2,0.74256301]
[1768336528403,0.98478751,3196.9,3196.1,0.002]
[1768336529337,0.98478751,3196.7,3196.1,0.002]
[1768336531342,6.25664768,3196.6,3196.1,0.002]
[1768336532112,6.25664768,3196.6,3195.7,0.00080088]
[1768336532113,0.98478751,3196.5,3195.7,0.00080088]
[1768336532312,0.98478751,3196.5,3195.8,0.246]
[1768336532612,0.98478751,3196.3,3195.8,0.246]
[1768336533234,0.98478751,3196.3,3195.7,0.00080088]
[1768336533433,4.11350285,3196.2,3195.7,0.24680088]
[1768336533634,0.98478751,3196.2,3195.7,0.24680088]
[1768336533833,3.12858705,3196.4,3195.7,0.24680088]
[1768336534142,4.11337456,3196.4,3195.7,0.24680088]
[1768336535649,7.96614924,3196.4,3195.7,0.24680088]
[1768336535948,0.92215314,3196.3,3195.7,0.24680088]
[1768336537948,4.05078383,3196.3,3195.7,0.24680088]
[1768336539913,4.05078383,3196.3,3196.0,0.002]
[1768336540313,0.09200664,3196.2,3196.0,0.002]
[1768336541237,0.09200664,3196.1,3196.0,0.002]
[1768336543337,0.001,3197.1,3196.0,0.002]
[1768336543338,0.92215314,3197.0,3196.0,0.002]
[1768336543537,0.92215314,3196.9,3196.0,0.002]
[1768336543983,4.69575612,3196.6,3195.7,0.00080088]
[1768336544187,4.69575612,3196.6,3195.6,0.002]
[1768336544188,0.92215314,3196.0,3195.3,3.12956004]
[1768336544336,0.92215314,3196.0,3195.2,0.246]
[1768336544944,0.00080088,3196.1,3195.3,3.12959022]
[1768336545452,7.18059016,3196.1,3195.2,1.147325]
[1768336545763,7.18059016,3196.1,3195.2,4.70471874]
[1768336545764,4.05177209,3196.1,3195.2,4.70471874]
[1768336545975,4.05177209,3196.1,3195.2,1.57502945]
[1768336546140,0.92215314,3196.0,3195.2,0.67370445]
[1768336547752,0.92215314,3196.0,3195.3,0.246]
[1768336548354,3.12900904,3195.9,3195.3,0.246]
[1768336548743,4.05116218,3195.9,3195.3,0.246]
[1768336549362,0.92215314,3195.9,3195.3,0.246]
[1768336549780,3.12895902,3196.0,3195.3,0.246]
[1768336550874,0.92215314,3195.9,3194.4,0.002]
[1768336551075,0.92215314,3195.9,3194.7,3.1301318]
[1768336551458,0.96126575,3195.9,3194.7,3.13014791]
[1768336552204,0.96126575,3195.9,3194.8,3.13007157]
[1768336552394,3.12920486,3195.7,3194.9,0.31300716]
[1768336552563,0.92215314,3195.6,3195.0,0.246]
[1768336552946,0.92215314,3195.6,3195.3,0.002]
[1768336553169,0.92215314,3195.6,3195.0,0.246]
[1768336553966,0.92215314,3195.5,3194.4,0.002]
[1768336554292,0.92215314,3195.5,3194.5,0.246]
[1768336554503,0.92215314,3195.5,3194.6,3.13027954]
[1768336554697,4.05157807,3195.5,3194.6,3.13027954]
[1768336555001,4.05157807,3195.5,3194.6,3.55823999]
[1768336555211,0.92215314,3195.3,3194.4,0.002]
[1768336555372,0.92215314,3195.3,3194.5,3.13035415]
[1768336556210,0.92215314,3195.3,3194.4,0.248]
[1768336556510,4.05204359,3195.0,3194.4,0.002]
[1768336556706,0.92215314,3194.9,3194.4,0.248]
[1768336557011,0.92215314,3194.7,3194.0,0.002]
[1768336557365,0.92215314,3194.4,3193.8,0.246]
[1768336557880,0.92215314,3194.3,3192.5,0.9021262]
[1768336558059,0.92215314,3194.3,3193.1,0.901325]
[1768336558265,0.92215314,3194.3,3193.6,3.13118618]
[1768336558673,7.18252186,3194.7,3193.5,0.901325]
[1768336558874,4.0523375,3194.7,3193.5,0.901325]
[1768336559196,0.92215314,3194.4,3193.5,0.96242161]
[1768336559402,0.92215314,3194.3,3193.5,0.246]
[1768336559787,0.74284376,3194.6,3193.5,0.246]
[1768336560109,7.18235072,3194.8,3193.6,0.901325]
[1768336560413,0.92215314,3194.7,3193.6,0.901325]
[1768336560796,0.92215314,3194.8,3193.7,4.03248948]
[1768336561873,0.92215314,3194.8,3193.6,0.246]
[1768336562200,0.92215314,3194.8,3193.6,3.37725221]
[1768336562405,0.92215314,3194.6,3193.6,3.37725221]
[1768336563107,0.92215314,3194.5,3193.6,3.37725221]
[1768336563611,0.92215314,3194.5,3193.6,6.50851473]
[1768336563918,0.92215314,3194.5,3193.6,3.37725221]
[1768336564115,1.64036721,3194.7,3193.6,7.40983973]
[1768336564294,0.92215314,3194.6,3193.7,0.74098397]
[1768336564474,0.92215314,3195.0,3193.7,1.64230897]
[1768336564679,0.92215314,3194.8,3193.7,1.64230897]
[1768336565400,0.92215314,3194.8,3193.9,0.002]
[1768336565724,0.92215314,3194.8,3193.9,0.47953754]
[1768336566027,0.92215314,3194.8,3193.9,0.002]
[1768336566182,0.92215314,3194.8,3193.5,0.002]
[1768336566183,0.94067318,3194.6,3193.5,0.002]
[1768336566888,0.94067318,3194.6,3193.5,0.248]
[1768336567091,0.94067318,3194.4,3193.5,0.248]
[1768336567479,0.94067318,3194.2,3193.5,0.248]
[1768336567985,0.94067318,3194.2,3193.5,0.002]
[1768336569178,0.94067318,3194.2,3193.5,0.248]
[1768336569713,0.94067318,3194.0,3193.5,0.002]
[1768336569909,5.95988714,3195.0,3193.5,0.96981099]
[1768336569910,0.94067318,3195.0,3193.5,0.96981099]
[1768336570112,0.94067318,3194.9,3193.5,0.002]
[1768336570478,0.94067318,3194.9,3193.5,0.96981099]
[1768336572089,4.07066851,3194.9,3193.7,0.96781099]
[1768336572491,0.94067318,3195.2,3193.7,0.96781099]
[1768336572695,4.07043054,3195.2,3193.9,0.96781099]
[1768336572889,4.07043054,3195.2,3194.1,0.96781099]
[1768336573414,0.94067318,3195.1,3194.1,0.02948703]
[1768336574002,0.94067318,3195.1,3194.2,6.26134868]
[1768336574749,0.94067318,3195.5,3194.3,0.09211126]
[1768336574918,0.001,3195.6,3194.5,0.09211126]
[1768336575086,0.001,3195.6,3194.6,0.246]
[1768336575619,0.16,3196.9,3195.7,0.00080096]
[1768336575620,0.94067318,3196.9,3195.7,0.00080096]
[1768336575819,0.94067318,3196.9,3195.8,0.246]
[1768336575988,1.66033406,3196.8,3195.8,0.246]
[1768336576180,4.78855635,3196.8,3195.8,3.37503172]
[1768336576382,1.66033406,3196.8,3195.8,6.50413867]
[1768336576682,4.7884967,3196.8,3195.8,3.37503172]
[1768336577322,0.95909098,3196.7,3195.7,0.00080096]
[1768336577496,0.95909098,3196.7,3195.4,3.12943934]
[1768336577497,0.95989194,3196.1,3195.4,0.246]
[1768336578017,0.95989194,3196.1,3195.2,3.12966757]
[1768336578216,4.08875079,3196.1,3195.4,0.246]
[1768336580011,3.12965981,3196.1,3195.4,0.246]
[1768336580207,0.00080096,3196.1,3195.4,0.246]
[1768336581932,0.00080096,3196.1,3195.4,3.37548701]
[1768336582135,0.00080096,3196.1,3195.4,4.02600446]
[1768336582326,0.00080096,3196.1,3195.5,0.95487838]
[1768336583103,6.91897812,3195.6,3194.2,0.95487838]
[1768336583303,6.84855243,3195.6,3194.4,3.13040285]
[1768336583503,6.84855243,3195.6,3194.6,3.13027298]
[1768336583716,0.68485524,3195.5,3194.7,0.27730184]
[1768336583915,0.95909098,3195.5,3194.7,0.27730184]
[1768336584515,4.08858093,3195.5,3194.7,0.27730184]
[1768336585032,0.95909098,3195.4,3194.7,0.246]
[1768336585231,0.95909098,3195.4,3194.8,0.03130086]
[1768336585806,3.12934202,3195.6,3194.7,3.37613369]
[1768336586006,3.12934202,3195.6,3194.7,4.02678277]
[1768336586928,4.08833602,3195.7,3194.7,7.15696713]
[1768336587843,0.95909098,3195.6,3194.7,7.15696713]
[1768336588350,0.95909098,3195.9,3194.8,0.95487838]
[1768336588837,0.00080096,3196.1,3194.8,0.95487838]
[1768336589005,0.00080096,3196.1,3195.0,0.95487838]
[1768336589540,3.12964155,3196.1,3195.0,0.95487838]
[1768336589772,0.00080096,3196.1,3195.0,0.95487838]
[1768336590111,0.00080096,3196.1,3195.0,0.95687838]
[1768336590344,0.001,3195.8,3195.2,0.95487838]
[1768336590533,0.001,3195.8,3195.4,0.95487838]
[1768336591313,0.001,3195.8,3195.4,4.08432309]
[1768336592045,0.001,3195.8,3195.5,0.95487838]
[1768336592213,0.001,3195.8,3195.4,3.12944471]
[1768336592652,0.001,3195.8,3195.4,3.04149315]
[1768336592945,0.001,3195.8,3195.5,0.71385302]
[1768336594061,0.001,3195.8,3195.5,0.246]
[1768336594417,0.001,3195.8,3195.0,0.002]
[1768336594658,0.001,3195.8,3195.1,3.37573608]
[1768336594839,0.001,3195.8,3195.2,3.1296731]
[1768336597762,0.001,3195.8,3195.2,6.25936764]
[1768336598052,0.001,3195.8,3195.3,0.65053676]
[1768336599437,0.91489524,3195.8,3195.0,0.002]
[1768336599642,0.91489524,3195.8,3195.3,0.246]
[1768336600253,0.91489524,3195.8,3195.0,0.002]
[1768336600254,0.91389524,3195.7,3195.0,0.002]
[1768336600463,0.91389524,3195.5,3194.8,0.246]
[1768336602433,0.91389524,3195.3,3194.5,3.13032524]
[1768336602628,0.91389524,3195.3,3194.8,0.246]
[1768336603731,0.91389524,3195.3,3194.1,3.1307629]
[1768336603936,0.91389524,3195.3,3195.1,0.002]
[1768336604162,0.91389524,3195.1,3194.2,3.37663117]
[1768336604481,0.91389524,3195.0,3194.8,0.002]
[1768336604975,0.91389524,3195.0,3194.5,0.246]
[1768336605348,6.25962904,3195.1,3193.8,0.93232131]
[1768336605349,0.91389524,3194.5,3193.8,0.002]
[1768336605576,0.68737824,3194.4,3193.8,0.002]
[1768336605879,1.02344065,3194.5,3193.8,0.002]
[1768336606574,3.13047833,3194.4,3193.8,0.002]
[1768336607684,4.15386346,3194.5,3193.8,0.002]
[1768336608169,0.91389524,3194.4,3193.8,0.002]
[1768336608368,0.91389524,3194.4,3193.5,0.002]
[1768336608537,0.91389524,3194.2,3193.5,0.248]
[1768336608741,4.0446676,3194.1,3193.5,0.248]
[1768336609042,7.17543996,3194.1,3193.5,0.248]
[1768336609241,0.91389524,3194.0,3192.2,0.93032131]
[1768336609568,6.26154472,3194.1,3192.6,0.246]
[1768336609569,0.91389524,3193.5,3192.6,0.246]
[1768336610237,0.91389524,3193.5,3191.7,4.23118192]
[1768336610445,0.91389524,3193.5,3192.5,0.2468012]
[1768336610673,3.13145863,3193.4,3192.5,0.2468012]
[1768336610846,0.91389524,3193.2,3192.5,0.2468012]
[1768336611382,1.31843063,3193.3,3192.5,0.2468012]
[1768336611536,0.91389524,3193.2,3192.5,0.0008012]
[1768336612792,0.91389524,3193.0,3192.0,0.246]
[1768336612943,6.26350568,3193.1,3192.0,0.246]
[1768336612944,0.91389524,3192.8,3192.0,0.246]
[1768336613498,0.0008012,3192.9,3192.0,0.246]
[1768336614283,0.0008012,3192.9,3191.7,2.02844434]
[1768336614284,0.91469644,3192.9,3191.7,1.09812303]
[1768336614457,0.91469644,3192.9,3190.3,0.93032131]
[1768336614458,0.91389524,3192.0,3190.7,3.13410637]
[1768336614652,0.68737824,3191.9,3190.8,3.13477963]
[1768336614840,3.13302838,3191.8,3190.8,0.000804]
[1768336615241,0.68737824,3191.9,3190.8,0.000804]
[1768336615481,0.68737824,3191.9,3190.8,0.93112531]
[1768336615684,0.246,3192.1,3190.9,1.17632131]
[1768336616418,3.13284285,3192.0,3190.9,1.17632131]
[1768336616621,3.37874527,3192.1,3190.9,1.17632131]
[1768336616770,0.246,3192.1,3191.1,4.06403695]
[1768336616965,0.246,3192.1,3191.2,0.93032131]
[1768336617276,3.37873648,3192.1,3191.2,0.93032131]
[1768336617490,4.02986963,3192.1,3191.2,0.93032131]
[1768336617699,4.02986963,3192.1,3191.0,3.13377376]
[1768336617889,3.78386963,3192.1,3191.0,3.13377376]
[1768336618091,0.65112904,3192.1,3191.1,0.246]
[1768336618300,4.04645496,3192.3,3191.1,0.246]
[1768336618901,4.04645496,3192.3,3191.1,3.37962901]
[1768336619194,4.04645496,3192.3,3191.1,4.30995032]
[1768336619400,3.13255972,3192.3,3191.2,0.93032131]
[1768336619587,6.26511944,3192.3,3191.2,0.93032131]
[1768336619903,0.62651194,3192.2,3191.2,0.93032131]
[1768336620105,0.91389524,3192.8,3191.3,0.03133519]
[1768336620276,0.91389524,3192.2,3190.8,0.000804]
[1768336620465,0.68737824,3192.1,3191.0,0.93032131]
[1768336620665,0.91389524,3192.3,3191.1,4.06403695]
[1768336620995,1.15989524,3192.6,3191.2,0.246]
[1768336621203,1.15989524,3192.6,3191.2,4.30992695]
[1768336621204,6.26468284,3192.5,3191.2,4.30992695]
[1768336621611,6.2640942,3192.8,3191.3,0.93032131]
[1768336621905,0.0018012,3192.9,3191.5,0.93032131]
[1768336622506,3.13377241,3192.9,3191.5,0.93032131]
[1768336622664,0.62656965,3192.8,3191.7,0.93032131]
[1768336622870,4.04613855,3192.6,3191.7,0.246]
[1768336623113,7.17838186,3192.6,3191.7,0.246]
[1768336623295,4.04613855,3192.6,3191.7,0.246]
[1768336623604,0.40461386,3192.5,3191.7,0.246]
[1768336624006,0.40461386,3192.5,3191.8,0.03133028]
[1768336624211,0.62656965,3192.8,3191.8,0.03133028]
[1768336624418,0.62656965,3192.8,3191.7,1.17632131]
[1768336624919,0.95227175,3192.9,3191.8,0.246]
[1768336625199,0.95047055,3192.7,3190.3,0.95986273]
[1768336625374,0.95047055,3192.7,3190.6,0.16429879]
[1768336625572,0.95047055,3192.7,3190.6,0.00178592]
[1768336625980,0.95047055,3192.7,3190.6,0.03312798]
[1768336626175,0.95047055,3192.7,3190.8,3.13477577]
[1768336626392,0.95047055,3192.7,3190.8,0.000804]
[1768336626596,0.95047055,3192.5,3190.8,3.13479945]
[1768336626808,0.95047055,3192.5,3190.9,3.13389544]
[1768336627108,0.95047055,3192.3,3190.8,0.000804]
[1768336627341,9.39731862,3192.4,3190.8,0.000804]
[1768336627342,0.95047055,3192.1,3190.8,0.000804]
[1768336627797,0.95047055,3192.4,3190.9,1.20586273]